bitfinex-derivatives/quotes_SOLF0:USTF0_20250830
["timestamp","ask_amount","ask_price","bid_price","bid_amount"]
[1756574855214,10.60372819,201.48,201.39,11.96191917]
[1756574861316,7.58,201.47,201.39,11.96191917]
[1756574867920,7.58,201.47,201.4,7.36]
[1756574872525,7.58,201.47,201.4,11.49191917]
[1756574877330,7.58,201.47,201.42,7.36]
[1756574877522,10.70372819,201.51,201.43,7.36]
[1756574878430,7.58,201.51,201.43,11.49191917]
[1756574878930,7.58,201.51,201.46,4.13191917]
[1756574879123,7.58,201.53,201.47,7.36]
[1756574887337,1.98656251,201.51,201.47,7.36]
[1756574887638,7.87,201.5,201.47,7.36]
[1756574891041,1.98656251,201.49,201.43,4.13191917]
[1756574891246,122.48,201.54,201.43,7.77]
[1756574891247,9.85656251,201.46,201.43,7.77]
[1756574891446,7.87,201.46,201.43,7.77]
[1756574892247,10.97557598,201.46,201.41,4.13191917]
[1756574892546,10.97557598,201.46,201.42,11.90191917]
[1756574892947,7.87,201.45,201.42,11.90191917]
[1756574893945,7.87,201.45,201.43,7.77]
[1756574902853,3.10557598,201.44,201.41,4.15173299]
[1756574903157,3.10557598,201.44,201.39,4.15173299]
[1756574903355,3.10557598,201.44,201.38,4.15173299]
[1756574903855,7.87,201.43,201.38,4.15173299]
[1756574904058,7.87,201.43,201.39,7.77]
[1756574905057,3.10557598,201.44,201.39,7.77]
[1756574905258,7.87,201.43,201.39,7.77]
[1756574905454,3.10557598,201.44,201.39,7.77]
[1756574905651,7.87,201.43,201.39,7.77]
[1756574905854,3.10557598,201.41,201.37,4.15173299]
[1756574906158,3.10557598,201.41,201.36,4.15173299]
[1756574907057,7.87,201.4,201.36,4.15173299]
[1756574907453,3.10557598,201.38,201.33,4.15173299]
[1756574907658,7.87,201.37,201.31,11.92173299]
[1756574907858,7.87,201.37,201.31,7.77]
[1756574908059,3.10557598,201.35,201.31,7.77]
[1756574908255,3.10557598,201.38,201.28,4.15173299]
[1756574908561,7.87,201.37,201.28,4.15173299]
[1756574908756,3.10557598,201.35,201.28,4.15173299]
[1756574908961,3.10557598,201.35,201.27,7.77]
[1756574908962,7.87,201.34,201.27,11.92173299]
[1756574909159,7.87,201.34,201.27,7.77]
[1756574912663,3.10557598,201.29,201.23,7.77]
[1756574912962,7.87,201.3,201.19,4.14860778]
[1756574912963,3.10557598,201.26,201.19,4.14860778]
[1756574913156,3.10557598,201.23,201.14,4.14860778]
[1756574913362,3.10557598,201.23,201.17,7.77]
[1756574915467,7.87,201.24,201.17,7.77]
[1756574915663,3.10557598,201.26,201.17,7.77]
[1756574916358,7.87,201.25,201.17,7.77]
[1756574917161,3.10557598,201.23,201.17,7.77]
[1756574917661,11.18557598,201.23,201.17,7.77]
[1756574926280,3.10557598,201.23,201.12,8.04]
[1756574926576,8.08,201.22,201.12,8.04]
[1756574927468,8.08,201.19,201.12,8.04]
[1756574928175,8.08,201.16,201.08,8.04]
[1756574929768,3.10557598,201.18,201.08,8.04]
[1756574932074,8.08,201.19,201.08,8.04]
[1756574932275,3.10557598,201.18,201.08,8.04]
[1756574933174,8.08,201.19,201.08,8.04]
[1756574933376,11.18557598,201.19,201.08,8.04]
[1756574936380,0.86510136,201.27,201.11,8.04]
[1756574936381,3.10557598,201.23,201.11,8.04]
[1756574936578,8.08,201.22,201.11,8.04]
[1756574937474,8.08,201.22,201.12,8.04]
[1756574938472,8.08,201.19,201.12,8.04]
[1756574945584,11.18557598,201.18,201.12,8.04]
[1756574948386,11.18557598,201.18,201.07,10.46557598]
[1756574948583,11.18557598,201.18,201.08,7.36]
[1756574951182,11.18557598,201.18,201.08,4.10742713]
[1756574951387,11.18557598,201.18,201.09,7.36]
[1756574953390,11.18557598,201.18,201.09,11.46742713]
[1756574953784,11.18557598,201.18,201.1,7.36]
[1756574953992,8.08,201.18,201.11,7.36]
[1756574955286,8.08,201.18,201.12,7.36]
[1756574956291,8.08,201.18,201.12,11.46742713]
[1756574965100,8.08,201.18,201.12,4.10742713]
[1756574965400,7.9,201.19,201.13,7.36]
[1756574966199,7.9,201.19,201.13,11.46742713]
[1756574967100,7.9,201.19,201.13,11.52263922]
[1756574969802,7.9,201.19,201.15,7.36]
[1756574970207,7.9,201.19,201.14,4.16263922]
[1756574970404,3.10557598,201.2,201.15,7.36]
[1756574970707,7.9,201.19,201.15,7.36]
[1756574970908,7.9,201.19,201.16,7.36]
[1756574971608,7.9,201.19,201.15,4.16263922]
[1756574971907,7.9,201.19,201.16,7.36]
[1756574973809,7.9,201.21,201.16,7.36]
[1756574974710,7.9,201.21,201.15,4.16263922]
[1756574975310,1.99309153,201.18,201.15,4.16263922]
[1756574976512,9.89309153,201.18,201.15,11.52263922]
[1756574977113,9.89309153,201.18,201.16,7.36]
[1756574981114,9.89309153,201.18,201.15,4.16263922]
[1756574981412,8.03,201.17,201.15,4.16263922]
[1756574981602,1.99309153,201.18,201.15,4.16263922]
[1756574981801,8.03,201.17,201.15,4.16263922]
[1756574982614,1.99309153,201.18,201.16,7.56]
[1756574982814,10.02309153,201.18,201.16,7.56]
[1756574983212,10.02309153,201.18,201.15,11.72263922]
[1756574983414,1.99309153,201.16,201.15,4.16263922]
[1756574983615,1.99309153,201.16,201.13,4.16263922]
[1756574983809,8.03,201.15,201.13,11.72263922]
[1756574984009,8.03,201.17,201.14,11.72263922]
[1756574984312,8.03,201.17,201.14,4.16263922]
[1756574984613,8.03,201.17,201.15,7.56]
[1756574985316,8.03,201.17,201.14,4.16263922]
[1756574985317,8.03,201.17,201.14,11.72263922]
[1756574986914,1.99309153,201.18,201.14,11.72263922]
[1756574987110,10.02309153,201.16,201.14,4.16263922]
[1756574989912,1.99309153,201.16,201.14,4.16263922]
[1756574990118,8.03,201.15,201.14,4.16263922]
[1756574990518,8.03,201.21,201.14,4.16263922]
[1756574990820,10.02309153,201.16,201.14,4.16263922]
[1756574991116,10.02309153,201.16,201.14,11.72263922]
[1756574992921,10.02309153,201.16,201.14,7.56]
[1756574993322,8.03,201.16,201.14,7.56]
[1756574995122,8.03,201.16,201.13,11.72263922]
[1756574995523,8.03,201.16,201.13,4.16263922]
[1756574995724,8.03,201.16,201.14,7.56]
[1756574997027,1.99309153,201.17,201.14,7.56]
[1756574997426,1.99309153,201.17,201.13,4.16263922]
[1756574997622,1.99309153,201.18,201.13,4.16263922]
[1756574997827,10.02309153,201.18,201.14,7.56]
[1756574998026,10.02309153,201.18,201.13,4.16263922]
[1756574998328,10.02309153,201.18,201.14,7.56]
[1756574998524,1.99309153,201.21,201.14,4.16263922]
[1756574998726,1.99309153,201.21,201.15,11.72263922]
[1756575000130,1.99309153,201.21,201.15,13.71573075]
[1756575001826,1.99309153,201.21,201.15,11.72263922]
[1756575002026,8.03,201.16,201.15,4.16263922]
[1756575002224,8.03,201.16,201.13,4.16263922]
[1756575002527,8.03,201.16,201.13,11.72263922]
[1756575003429,8.03,201.14,201.12,4.16263922]
[1756575003623,8.03,201.14,201.1,4.16263922]
[1756575003831,10.02309153,201.13,201.1,4.16263922]
[1756575004029,10.02309153,201.13,201.1,11.72263922]
[1756575005332,8.03,201.13,201.1,7.56]
[1756575006532,8.03,201.15,201.1,7.56]
[1756575006935,8.03,201.15,201.09,4.16263922]
[1756575007137,8.03,201.15,201.08,4.16263922]
[1756575007636,8.03,201.15,201.08,11.82263922]
[1756575008532,7.56,201.15,201.08,11.82263922]
[1756575008738,56.59568341,201.16,201.08,11.82263922]
[1756575008938,7.56,201.15,201.08,11.82263922]
[1756575009438,7.56,201.15,201.08,7.66]
[1756575010838,3.11568341,201.13,201.08,7.66]
[1756575011239,7.56,201.12,201.07,4.16263922]
[1756575011434,3.11568341,201.13,201.08,7.66]
[1756575011635,10.67568341,201.13,201.09,7.66]
[1756575011837,7.56,201.12,201.09,7.66]
[1756575012836,3.11568341,201.13,201.06,4.16263922]
[1756575013035,7.56,201.12,201.06,11.82263922]
[1756575013234,3.11568341,201.13,201.05,4.16263922]
[1756575013434,3.11568341,201.1,201.03,7.66]
[1756575014745,7.56,201.09,201.03,7.66]
[1756575015246,3.11568341,201.07,201.01,4.16263922]
[1756575015448,10.67568341,201.07,201.0,11.82263922]
[1756575015944,7.56,201.07,201.01,7.66]
[1756575018444,10.7,201.09,201.01,7.66]
[1756575020647,7.56,201.08,201.01,7.66]
[1756575022849,7.56,201.16,201.01,7.66]
[1756575023046,10.67568341,201.11,201.01,7.66]
[1756575025252,7.56,201.07,201.01,7.66]
[1756575028945,7.56,201.1,201.01,7.66]
[1756575034047,7.56,201.2,201.1,7.66]
[1756575034453,7.56,201.2,201.13,7.66]
[1756575035545,10.67568341,201.2,201.1,4.16098716]
[1756575035755,10.67568341,201.2,201.11,7.66]
[1756575036946,10.67568341,201.2,201.11,3.11568341]
[1756575037151,10.67568341,201.2,201.12,7.66]
[1756575039856,7.47,201.16,201.08,7.65]
[1756575051763,3.11568341,201.14,201.08,7.65]
[1756575051969,7.47,201.1,201.04,7.65]
[1756575064781,3.11568341,201.13,201.04,7.65]
[1756575065083,3.11568341,201.13,201.06,7.65]
[1756575065873,7.47,201.15,201.06,7.65]
[1756575066075,3.11568341,201.19,201.09,7.65]
[1756575066271,7.47,201.18,201.09,7.65]
[1756575066875,10.58568341,201.22,201.12,7.65]
[1756575067075,10.58568341,201.22,201.12,11.81098716]
[1756575067275,10.58568341,201.22,201.13,7.49]
[1756575068177,380.92,201.24,201.15,7.49]
[1756575068573,380.92,201.24,201.15,11.65098716]
[1756575068777,380.92,201.24,201.16,7.49]
[1756575070183,7.54,201.29,201.18,7.49]
[1756575070375,7.54,201.27,201.18,7.49]
[1756575071879,3.11568341,201.25,201.18,7.49]
[1756575072075,7.54,201.24,201.18,7.49]
[1756575072978,7.54,201.24,201.15,7.49]
[1756575073185,3.11568341,201.22,201.15,7.49]
[1756575073375,7.54,201.21,201.15,7.49]
[1756575083086,7.54,201.29,201.19,3.11568341]
[1756575083287,7.54,201.29,201.2,7.49]
[1756575084789,7.54,201.27,201.2,7.49]
[1756575085490,7.54,201.24,201.17,7.49]
[1756575088585,10.65568341,201.28,201.17,7.49]
[1756575089687,7.54,201.28,201.2,7.49]
[1756575091187,10.65568341,201.28,201.2,7.49]
[1756575091391,10.65568341,201.28,201.15,4.13782671]
[1756575091392,10.65568341,201.28,201.17,7.49]
[1756575092491,3.11568341,201.25,201.17,7.49]
[1756575092691,7.54,201.24,201.17,7.49]
[1756575093695,7.54,201.18,201.11,7.49]
[1756575094489,10.65568341,201.18,201.11,7.49]
[1756575100402,3.11568341,201.15,201.11,7.49]
[1756575100597,7.59,201.14,201.11,7.49]
[1756575103199,7.59,201.17,201.06,7.63]
[1756575103394,3.11568341,201.15,201.06,7.63]
[1756575104498,3.11568341,201.15,201.07,7.63]
[1756575107702,10.70568341,201.15,201.07,7.63]
[1756575109204,10.70568341,201.15,201.08,7.63]
[1756575110307,7.59,201.15,201.08,7.63]
[1756575112610,10.70568341,201.15,201.08,7.63]
[1756575114014,334.08,201.26,201.08,7.63]
[1756575114207,3.11568341,201.18,201.1,11.76782671]
[1756575114514,3.11568341,201.18,201.11,7.63]
[1756575116715,3.11568341,201.15,201.11,7.63]
[1756575116914,10.70568341,201.15,201.09,4.13782671]
[1756575117116,10.70568341,201.15,201.08,11.76782671]
[1756575117317,10.70568341,201.15,201.08,7.63]
[1756575117511,7.59,201.25,201.08,7.63]
[1756575117709,10.70568341,201.2,201.12,7.63]
[1756575123416,7.59,201.2,201.12,7.63]
[1756575124217,3.11568341,201.23,201.12,7.63]
[1756575124523,7.59,201.25,201.15,7.63]
[1756575124816,10.70568341,201.29,201.18,7.63]
[1756575125811,7.59,201.29,201.2,3.11568341]
[1756575126017,7.59,201.29,201.21,7.63]
[1756575128015,3.11568341,201.32,201.21,7.63]
[1756575128311,3.11568341,201.32,201.24,7.34]
[1756575129520,3.11568341,201.32,201.2,11.50167498]
[1756575129820,8.12,201.28,201.2,7.34]
[1756575130619,8.12,201.25,201.16,11.50167498]
[1756575130918,8.12,201.25,201.16,7.34]
[1756575133620,8.12,201.22,201.12,11.50167498]
[1756575133816,8.12,201.22,201.12,7.34]
[1756575134418,3.11568341,201.2,201.12,7.34]
[1756575134623,8.12,201.19,201.12,7.34]
[1756575135637,17.22,201.27,201.08,11.50167498]
[1756575135638,8.12,201.16,201.08,11.50167498]
[1756575135835,8.12,201.16,201.08,7.34]
[1756575136134,8.12,201.16,201.08,11.50167498]
[1756575136926,3.11568341,201.14,201.04,11.50167498]
[1756575137131,8.12,201.13,201.04,11.50167498]
[1756575138034,3.11568341,201.11,201.04,11.50167498]
[1756575139442,8.12,201.1,201.04,7.34]
[1756575145442,8.12,201.1,201.01,11.50167498]
[1756575145644,3.11568341,201.08,201.01,7.34]
[1756575146748,11.23568341,201.13,201.03,7.34]
[1756575146950,11.23568341,201.13,201.04,7.34]
[1756575147150,3.11568341,201.16,201.06,7.34]
[1756575149250,8.12,201.17,201.08,3.11568341]
[1756575149554,8.12,201.17,201.09,7.34]
[1756575150352,3.11568341,201.16,201.09,7.34]
[1756575165568,8.12,201.17,201.09,7.34]
[1756575165970,3.11568341,201.15,201.05,4.16167498]
[1756575166270,7.89,201.14,201.05,7.55]
[1756575166971,7.89,201.18,201.07,7.55]
[1756575171379,3.11568341,201.16,201.07,7.55]
[1756575171577,7.89,201.15,201.07,7.55]
[1756575174273,7.89,201.15,201.08,7.55]
[1756575175281,7.89,201.15,201.08,11.71167498]
[1756575175878,7.89,201.15,201.09,7.55]
[1756575178176,7.89,201.15,201.09,11.71167498]
[1756575178376,7.89,201.18,201.1,4.16167498]
[1756575178581,7.89,201.18,201.12,7.55]
[1756575178975,3.11568341,201.19,201.12,7.55]
[1756575179178,7.89,201.21,201.13,7.55]
[1756575180580,7.89,201.21,201.13,11.71167498]
[1756575180781,7.89,201.21,201.14,7.55]
[1756575181079,11.00568341,201.27,201.16,11.71167498]
[1756575181279,11.00568341,201.27,201.17,7.55]
[1756575181477,11.00568341,201.27,201.17,11.71167498]
[1756575182081,11.00568341,201.27,201.17,7.55]
[1756575183076,122.44,201.28,201.15,4.16167498]
[1756575183077,7.89,201.23,201.15,4.16167498]
[1756575183285,7.89,201.23,201.14,7.55]
[1756575184380,7.89,201.23,201.14,10.66568341]
[1756575184686,7.89,201.23,201.15,7.55]
[1756575187187,3.11568341,201.21,201.15,7.55]
[1756575189985,10.99568341,201.21,201.15,7.55]
[1756575193787,7.88,201.28,201.15,7.55]
[1756575193988,10.99568341,201.26,201.16,8.07]
[1756575198589,122.58,201.28,201.16,8.07]
[1756575198590,7.88,201.22,201.16,8.07]
[1756575200091,339.75051388,201.29,201.12,4.16167498]
[1756575200092,3.11568341,201.2,201.13,8.07]
[1756575200292,7.88,201.19,201.13,8.07]
[1756575205200,7.88,201.23,201.13,8.07]
[1756575205398,7.88,201.23,201.14,8.07]
[1756575205600,7.88,201.23,201.15,8.07]
[1756575210204,3.11568341,201.21,201.15,8.07]
[1756575210604,10.99568341,201.21,201.15,8.07]
[1756575211799,10.99568341,201.21,201.13,12.23167498]
[1756575212002,10.99568341,201.21,201.13,8.07]
[1756575212200,7.88,201.17,201.13,8.07]
[1756575212502,7.88,201.17,201.11,4.16167498]
[1756575212703,7.88,201.17,201.12,8.07]
[1756575213008,7.88,201.17,201.11,12.23167498]
[1756575213505,7.88,201.17,201.11,8.07]
[1756575218102,3.11568341,201.18,201.08,7.83]
[1756575218103,3.11568341,201.15,201.08,7.83]
[1756575220501,8.05,201.16,201.08,7.83]
[1756575225408,3.11568341,201.15,201.08,7.83]
[1756575226012,8.05,201.14,201.08,7.83]
[1756575229022,8.05,201.11,201.05,11.99167498]
[1756575229315,8.05,201.11,201.05,7.83]
[1756575234026,3.11568341,201.13,201.05,7.83]
[1756575236622,8.05,201.12,201.05,7.83]
[1756575242821,8.05,201.12,201.03,4.16167498]
[1756575243123,8.05,201.03,200.98,4.16167498]
[1756575243422,3.11568341,201.01,200.96,7.83]
[1756575243920,8.05,201.0,200.95,4.16167498]
[1756575244128,8.05,201.0,200.96,7.83]
[1756575246024,8.05,201.0,200.93,11.99167498]
[1756575246329,8.05,201.0,200.93,7.83]
[1756575246629,11.16568341,201.0,200.93,7.83]
[1756575249324,3.11568341,200.97,200.93,7.83]
[1756575249730,10.47568341,200.97,200.9,7.75]
[1756575252931,7.36,200.93,200.86,7.75]
[1756575255837,10.47568341,200.91,200.84,7.75]
[1756575256331,7.36,200.91,200.84,7.75]
[1756575260346,7.14,200.97,200.84,7.75]
[1756575260347,7.36,200.89,200.84,7.75]
[1756575260842,3.11568341,200.9,200.84,7.75]
[1756575261236,10.47568341,200.9,200.84,7.75]
[1756575264843,7.36,200.99,200.84,7.75]
[1756575265031,3.11568341,200.94,200.84,7.75]
[1756575265640,7.36,200.95,200.84,7.75]
[1756575265836,7.36,200.95,200.87,7.75]
[1756575268640,7.36,200.99,200.87,7.75]
[1756575268941,7.36,200.99,200.88,7.75]
[1756575275842,7.36,200.99,200.9,3.11568341]
[1756575276034,7.36,200.99,200.91,7.75]
[1756575279156,10.47568341,200.99,200.88,7.86]
[1756575288061,7.68,200.95,200.88,7.86]
[1756575289469,7.68,200.95,200.86,4.17597064]
[1756575289664,7.68,200.92,200.85,12.03597064]
[1756575290364,7.68,200.92,200.85,7.86]
[1756575291463,7.68,200.92,200.85,12.03597064]
[1756575291762,12.0,200.96,200.84,4.17597064]
[1756575291969,3.11568341,200.9,200.84,7.86]
[1756575292164,3.11568341,200.9,200.84,12.03597064]
[1756575294565,7.68,200.91,200.85,7.86]
[1756575294764,10.79568341,200.94,200.85,12.03597064]
[1756575300278,7.68,200.93,200.85,12.03597064]
[1756575300482,7.68,200.93,200.85,7.86]
[1756575301279,3.11568341,200.91,200.85,7.86]
[1756575301577,7.68,200.9,200.83,7.86]
[1756575301778,3.11568341,200.92,200.85,7.86]
[1756575303780,7.68,200.93,200.85,7.86]
[1756575305577,3.11568341,200.92,200.85,7.86]
[1756575305882,3.11568341,200.89,200.82,12.03597064]
[1756575306086,7.68,200.9,200.83,7.86]
[1756575306285,7.68,200.9,200.83,4.17597064]
[1756575306582,7.68,200.9,200.84,7.86]
[1756575306984,3.11568341,200.92,200.84,4.17597064]
[1756575307286,3.11568341,200.92,200.85,7.86]
[1756575307477,7.43,200.99,200.85,12.03597064]
[1756575307673,3.11568341,200.96,200.87,4.17597064]
[1756575307879,3.11568341,200.96,200.88,8.04]
[1756575309587,7.43,200.97,200.89,8.04]
[1756575309886,7.43,200.97,200.9,8.04]
[1756575313986,7.43,200.97,200.9,4.17597064]
[1756575314186,3.11568341,200.98,200.91,8.04]
[1756575314390,7.43,201.0,200.91,8.04]
[1756575314688,7.43,201.0,200.92,8.04]
[1756575319384,7.43,200.94,200.88,8.04]
[1756575322091,7.43,200.9,200.83,4.17597064]
[1756575322291,7.43,200.9,200.84,8.04]
[1756575327301,3.11568341,200.88,200.82,4.17597064]
[1756575327502,7.43,200.87,200.8,12.21597064]
[1756575327700,7.43,200.87,200.8,8.04]
[1756575329403,3.11568341,200.85,200.77,4.17597064]
[1756575329599,7.43,200.84,200.78,8.04]
[1756575337305,7.43,200.84,200.76,4.17597064]
[1756575337609,7.51,200.82,200.74,7.56]
[1756575338006,7.51,200.82,200.74,11.73597064]
[1756575338808,7.51,200.82,200.74,7.56]
[1756575339905,7.51,200.8,200.74,7.56]
[1756575340504,7.51,200.84,200.76,3.11568341]
[1756575340813,7.51,200.84,200.77,7.56]
[1756575341202,10.62568341,200.87,200.77,7.56]
[1756575341806,7.51,200.87,200.77,7.56]
[1756575342005,7.51,200.9,200.8,7.56]
[1756575342209,7.51,200.9,200.83,7.56]
[1756575343014,10.62568341,200.9,200.83,7.56]
[1756575343812,10.62568341,200.9,200.8,7.56]
[1756575346710,3.11568341,200.84,200.76,7.56]
[1756575347113,7.51,200.83,200.76,7.56]
[1756575356927,7.51,200.83,200.72,11.73597064]
[1756575357127,3.11568341,200.84,200.72,11.73597064]
[1756575357518,7.51,200.83,200.72,11.73597064]
[1756575357923,7.51,200.8,200.72,11.73597064]
[1756575358923,7.51,200.8,200.72,4.17597064]
[1756575359128,7.51,200.8,200.73,7.56]
[1756575360526,3.11568341,200.81,200.73,7.56]
[1756575360732,10.62568341,200.81,200.73,7.56]
[1756575361130,10.62568341,200.81,200.73,11.73597064]
[1756575363431,10.62568341,200.81,200.73,11.73896752]
[1756575364227,3.11568341,200.81,200.73,11.73896752]
[1756575364423,7.51,200.8,200.73,11.73896752]
[1756575364924,7.51,200.8,200.73,7.56]
[1756575365129,8.70619729,200.9,200.75,7.56]
[1756575365130,7.51,200.84,200.75,7.56]
[1756575365529,3.11568341,200.82,200.75,7.56]
[1756575365724,7.51,200.81,200.75,7.56]
[1756575372134,7.51,200.81,200.74,4.18224909]
[1756575373835,7.51,200.81,200.73,4.18224909]
[1756575374326,3.11568341,200.79,200.73,4.18224909]
[1756575374526,10.91568341,200.79,200.73,4.18224909]
[1756575374726,10.91568341,200.79,200.72,11.92224909]
[1756575376037,7.8,200.78,200.72,11.92224909]
[1756575378346,7.8,200.78,200.72,7.74]
[1756575378937,7.8,200.78,200.71,4.18224909]
[1756575378938,3.11568341,200.76,200.71,4.18224909]
[1756575379135,3.11568341,200.76,200.7,4.18224909]
[1756575379136,7.8,200.75,200.7,4.18224909]
[1756575379337,10.91568341,200.76,200.7,4.18224909]
[1756575379539,10.91568341,200.76,200.69,7.74]
[1756575379841,10.91568341,200.76,200.68,4.18224909]
[1756575380036,7.8,200.72,200.68,4.18224909]
[1756575380243,3.11568341,200.73,200.68,4.18224909]
[1756575380442,7.8,200.72,200.65,11.92224909]
[1756575380651,3.11568341,200.7,200.64,4.18224909]
[1756575380942,7.8,200.69,200.62,7.74]
[1756575381140,7.8,200.69,200.63,7.74]
[1756575381334,10.91568341,200.72,200.63,7.74]
[1756575381736,10.91568341,200.72,200.63,11.92224909]
[1756575381941,10.91568341,200.72,200.64,7.74]
[1756575382542,10.91568341,200.72,200.64,11.92224909]
[1756575382742,10.91568341,200.72,200.65,7.74]
[1756575385248,3.11568341,200.74,200.65,7.74]
[1756575387353,3.11568341,200.74,200.66,7.74]
[1756575387755,7.8,200.73,200.66,7.74]
[1756575388456,0.86724649,200.78,200.63,7.74]
[1756575388457,7.8,200.7,200.63,7.74]
[1756575389850,10.91568341,200.73,200.63,7.74]
[1756575391552,10.91568341,200.7,200.63,7.74]
[1756575392564,3.11568341,200.67,200.59,11.92224909]
[1756575392759,10.91568341,200.67,200.59,11.92224909]
[1756575393164,10.91568341,200.67,200.59,7.74]
[1756575394265,7.8,200.63,200.59,7.74]
[1756575394456,3.11568341,200.65,200.58,7.74]
[1756575395760,3.11568341,200.68,200.58,3.11568341]
[1756575395967,3.11568341,200.68,200.59,7.74]
[1756575396860,3.11568341,200.72,200.61,3.11568341]
[1756575397062,3.11568341,200.72,200.64,7.74]
[1756575399371,7.6,200.71,200.64,7.74]
[1756575400670,28.12,200.76,200.64,7.74]
[1756575400671,3.11568341,200.74,200.64,7.74]
[1756575401072,7.6,200.73,200.64,7.74]
[1756575401570,7.6,200.7,200.64,7.74]
[1756575402171,3.11568341,200.74,200.64,7.74]
[1756575402473,7.6,200.73,200.64,7.74]
[1756575403370,7.6,200.73,200.64,3.11568341]
[1756575403678,7.6,200.77,200.69,7.79]
[1756575404772,7.6,200.82,200.72,7.79]
[1756575405976,342.46,200.86,200.75,7.79]
[1756575406178,7.6,200.8,200.71,7.79]
[1756575406379,7.6,200.77,200.67,11.96258722]
[1756575406580,7.6,200.74,200.67,7.79]
[1756575416391,7.6,200.78,200.68,7.79]
[1756575416591,7.6,200.78,200.67,7.28827063]
[1756575416592,7.6,200.78,200.71,7.79]
[1756575416793,3.11568341,200.83,200.73,3.11568341]
[1756575416985,3.11568341,200.83,200.74,7.79]
[1756575419897,7.6,200.84,200.74,7.79]
[1756575421501,7.6,200.88,200.79,7.79]
[1756575421998,7.6,200.88,200.81,3.11568341]
[1756575422194,7.6,200.88,200.82,7.79]
[1756575422496,3.11568341,200.92,200.82,7.79]
[1756575422695,7.6,200.91,200.82,7.79]
[1756575424494,7.6,200.88,200.82,7.79]
[1756575424999,7.6,200.88,200.77,7.79]
[1756575426397,7.6,200.85,200.77,7.79]
[1756575431505,10.94568341,200.83,200.73,10.75568341]
[1756575431705,0.8665986,200.93,200.74,7.64]
[1756575431706,10.94568341,200.87,200.74,7.64]
[1756575435903,10.94568341,200.9,200.8,7.64]
[1756575437707,7.83,200.9,200.82,3.11568341]
[1756575437907,7.83,200.9,200.83,7.64]
[1756575439205,7.83,200.9,200.79,3.11568341]
[1756575439407,7.83,200.9,200.79,10.75568341]
[1756575439602,10.94568341,200.9,200.79,10.75568341]
[1756575439811,7.83,200.89,200.79,10.75568341]
[1756575440005,7.83,200.86,200.75,10.75568341]
[1756575440906,7.83,200.83,200.75,7.64]
[1756575441314,3.11568341,200.84,200.71,11.81258722]
[1756575441509,7.83,200.83,200.71,11.81258722]
[1756575441705,3.11568341,200.84,200.71,11.81258722]
[1756575441913,7.83,200.83,200.71,7.64]
[1756575442310,3.11568341,200.81,200.71,7.64]
[1756575444111,7.83,200.83,200.71,7.64]
[1756575444414,7.83,200.9,200.8,3.11568341]
[1756575445004,7.83,200.9,200.81,7.64]
[1756575449021,7.83,200.9,200.83,3.11568341]
[1756575449222,7.83,200.9,200.83,10.75568341]
[1756575451219,334.64,200.91,200.83,3.11568341]
[1756575451417,7.83,200.94,200.84,7.64]
[1756575451617,131.33,200.94,200.84,7.64]